bitfinex/quotes_SOLUSD_20260302
["timestamp","ask_amount","ask_price","bid_price","bid_amount"]
[1772485131106,3.98199606,87.76,87.74,0.2]
[1772485131307,5.10909883,87.791,87.74,0.2]
[1772485131792,0.28432314,87.749,87.71,1e-08]
[1772485131996,3.98199606,87.76,87.711,0.5]
[1772485131997,3.98199606,87.72,87.711,0.5]
[1772485132215,4.43764416,87.72,87.71,1e-08]
[1772485132417,0.4556481,87.727,87.71,1e-08]
[1772485132600,45.57813062,87.762,87.71,1e-08]
[1772485132601,0.4556481,87.755,87.71,3.98199607]
[1772485132804,0.4556481,87.755,87.72,3.98199606]
[1772485133218,0.4556481,87.755,87.71,3.98199607]
[1772485133411,0.4556481,87.755,87.72,3.98199606]
[1772485133718,3.69383402,87.788,87.71,1e-08]
[1772485133719,3.98199606,87.77,87.73,3.98199606]
[1772485133908,11.39405442,87.766,87.73,3.98199606]
[1772485134106,0.4556481,87.796,87.764,0.49919438]
[1772485134418,45.54067508,87.834,87.744,11.39679066]
[1772485134419,11.39224643,87.779,87.744,11.39679066]
[1772485134613,11.39224643,87.779,87.75,3.98199606]
[1772485134801,11.39146473,87.786,87.751,0.49919438]
[1772485136623,3.69383402,87.828,87.761,0.49919438]
[1772485136624,3.98199606,87.8,87.761,0.49919438]
[1772485136818,0.4556481,87.797,87.761,0.49919438]
[1772485137017,0.4556481,87.789,87.753,0.49919438]
[1772485138723,11.3910785,87.788,87.754,11.39549194]
[1772485139018,11.8467266,87.788,87.754,11.89468632]
[1772485139208,11.8467266,87.788,87.755,0.49919438]
[1772485139408,0.4556481,87.787,87.755,0.49919438]
[1772485139605,11.39025562,87.795,87.755,0.49919438]
[1772485139810,11.84590372,87.795,87.755,0.49919438]
[1772485140321,0.4556481,87.789,87.751,0.49919438]
[1772485140501,0.4556481,87.789,87.749,11.39609782]
[1772485140502,0.4556481,87.789,87.752,11.39575166]
[1772485140707,0.4556481,87.789,87.753,0.49919438]
[1772485141016,0.14216157,87.759,87.71,1e-08]
[1772485141209,3.98199606,87.73,87.71,1e-08]
[1772485142224,3.98199606,87.72,87.697,0.5]
[1772485142419,1.13984794,87.76,87.691,0.5]
[1772485142621,0.28432314,87.759,87.701,0.5]
[1772485142823,10.70059066,87.74,87.701,0.5]
[1772485143014,11.39744013,87.739,87.703,0.5]
[1772485143328,10.70059066,87.73,87.703,0.5]
[1772485143502,10.70059066,87.71,87.69,0.2]
[1772485143707,3.69383402,87.747,87.701,0.5]
[1772485143907,7.52667038,87.792,87.691,45.6147153]
[1772485143908,11.39081899,87.79,87.731,0.5]
[1772485144108,1.13984794,87.789,87.741,0.5]
[1772485144428,10.70059066,87.77,87.731,0.5]
[1772485144723,10.70059066,87.76,87.72,10.70059066]
[1772485145024,39.88240387,87.758,87.718,0.5]
[1772485145225,39.88240387,87.758,87.697,3.69383402]
[1772485145226,0.28432314,87.729,87.68,0.2]
[1772485145431,1.13984794,87.757,87.68,0.2]
[1772485145432,10.70059066,87.7,87.68,1e-08]
[1772485145626,10.70059066,87.69,87.648,0.98574981]
[1772485145927,16.46320654,87.754,87.681,0.5]
[1772485146220,16.46320654,87.754,87.691,0.5]
[1772485146221,10.70059066,87.74,87.691,0.5]
[1772485146415,10.70059066,87.73,87.691,0.5]
[1772485146624,0.28432314,87.75,87.691,0.5]
[1772485146819,10.70059066,87.74,87.691,0.5]
[1772485147028,10.70059066,87.73,87.691,0.5]
[1772485147325,11.39614126,87.749,87.701,0.5]
[1772485147507,10.70059066,87.74,87.701,0.5]
[1772485147707,10.70059066,87.73,87.69,0.5]
[1772485147908,0.28432314,87.699,87.633,0.5]
[1772485148112,10.70059066,87.67,87.64,11.61025805]
[1772485148312,10.70059066,87.67,87.64,0.2]
[1772485148530,10.70059066,87.68,87.64,0.2]
[1772485148729,10.70059066,87.67,87.642,0.5]
[1772485148909,11.40654051,87.669,87.642,0.5]
[1772485149110,45.61117447,87.698,87.64,0.2]
[1772485149111,11.39834951,87.732,87.661,0.5]
[1772485149312,10.70059066,87.71,87.66,10.70059066]
[1772485149626,10.70059066,87.71,87.661,0.5]
[1772485149808,10.70059066,87.7,87.661,0.5]
[1772485150009,10.70059066,87.68,87.649,0.5]
[1772485150416,24.38247948,87.714,87.661,0.5]
[1772485150417,10.70059066,87.7,87.661,0.5]
[1772485150616,24.38247948,87.714,87.671,0.5]
[1772485150812,24.38247948,87.714,87.681,0.5]
[1772485151313,56.96123217,87.779,87.701,0.5]
[1772485151528,10.70059066,87.73,87.701,0.5]
[1772485151730,10.70059066,87.72,87.688,0.5]
[1772485152034,10.70059066,87.72,87.637,91.28504656]
[1772485152035,10.70059066,87.74,87.7,10.70059066]
[1772485152224,10.70059066,87.75,87.711,0.5]
[1772485153029,10.70059066,87.75,87.684,3.69383402]
[1772485153030,10.72829097,87.756,87.731,0.5]
[1772485153339,10.72829097,87.756,87.722,0.5]
[1772485153522,8.99621672,87.756,87.731,0.5]
[1772485154225,8.99621672,87.756,87.73,10.70059066]
[1772485154226,8.49621672,87.756,87.732,0.49919438]
[1772485154935,8.49621672,87.756,87.711,0.49919438]
[1772485154936,10.68910275,87.75,87.711,0.49919438]
[1772485155118,19.89149542,87.756,87.721,0.49919438]
[1772485155319,8.49621672,87.756,87.741,0.49919438]
[1772485155537,11.39536208,87.755,87.731,0.49919438]
[1772485155719,8.49621672,87.756,87.731,0.49919438]
[1772485156334,10.68910275,87.78,87.722,11.39964889]
[1772485156335,28.47963983,87.783,87.741,0.4847615]
[1772485156522,0.51733645,87.779,87.74,10.68910275]
[1772485156920,0.51733645,87.769,87.72,10.68910275]
[1772485157115,0.51733645,87.759,87.72,22.08888473]
[1772485157336,0.51733645,87.794,87.75,10.68910275]
[1772485157635,0.51733645,87.789,87.74,10.68910275]
[1772485157826,10.68910275,87.77,87.73,10.68910275]
[1772485158138,39.86570603,87.795,87.73,10.68910275]
[1772485158139,0.51733645,87.769,87.73,10.68910275]
[1772485158332,0.51733645,87.78,87.74,10.68910275]
[1772485158533,10.68910275,87.79,87.751,0.04267169]
[1772485158926,0.51733645,87.793,87.77,10.68910275]
[1772485159332,0.51733645,87.833,87.78,10.68910275]
[1772485159534,0.51733645,87.819,87.78,10.68910275]
[1772485159935,0.51733645,87.819,87.79,10.68910275]
[1772485160145,39.84789488,87.834,87.758,3.69383402]
[1772485160146,0.51733645,87.809,87.758,3.69383402]
[1772485160323,0.51733645,87.809,87.783,3.69383402]
[1772485160522,0.51733645,87.789,87.74,10.68910275]
[1772485161337,0.51733645,87.792,87.751,11.45916011]
[1772485161539,0.51733645,87.79,87.72,1.13999088]
[1772485161744,11.39049164,87.793,87.7,10.68910275]
[1772485161745,0.51733645,87.749,87.7,10.68910275]
[1772485162038,0.51733645,87.749,87.701,11.40237853]
[1772485162338,0.51733645,87.749,87.7,10.68910275]
[1772485162339,0.51733645,87.729,87.69,10.68910275]
[1772485162560,0.51733645,87.729,87.691,11.40358156]
[1772485163041,10.68910275,87.72,87.691,11.40358156]
[1772485163242,10.68910275,87.72,87.681,39.91742794]
[1772485163541,10.68910275,87.71,87.681,11.40497941]
[1772485163742,0.51733645,87.731,87.69,10.68910275]
[1772485163942,3.69383402,87.77,87.69,10.68910275]
[1772485163943,0.51733645,87.729,87.69,10.68910275]
[1772485164146,0.51733645,87.757,87.704,0.09334217]
[1772485164447,0.51733645,87.757,87.703,3.69383402]
[1772485164448,0.51733645,87.749,87.71,10.68910275]
[1772485164739,0.51733645,87.762,87.73,10.68910275]
[1772485165448,0.51733645,87.759,87.71,10.68910275]
[1772485165646,0.51733645,87.759,87.72,10.68910275]
[1772485166019,0.51733645,87.774,87.73,10.68910275]
[1772485166218,0.51733645,87.774,87.718,3.69383402]
[1772485166219,0.51733645,87.796,87.75,10.68910275]
[1772485166427,0.51733645,87.777,87.74,10.68910275]
[1772485167134,0.51733645,87.79,87.741,0.122376]
[1772485167335,0.51733645,87.778,87.74,39.18217041]
[1772485167552,0.51733645,87.777,87.741,11.39718033]
[1772485168126,11.39175871,87.783,87.75,10.68910275]
[1772485168322,0.51733645,87.777,87.741,11.39718033]
[1772485168540,0.51733645,87.749,87.702,0.58792723]
[1772485168745,10.68910275,87.73,87.702,11.99017575]
[1772485168945,10.68910275,87.73,87.703,0.58792723]
[1772485169247,10.68910275,87.74,87.703,0.58792723]
[1772485169541,10.68910275,87.73,87.703,0.58792723]
[1772485169747,10.68910275,87.75,87.71,10.68910275]
[1772485169929,10.68910275,87.74,87.711,0.58792723]
[1772485170118,10.68910275,87.74,87.703,39.90738354]
[1772485170119,3.69383402,87.775,87.721,0.58792723]
[1772485170324,11.39262526,87.777,87.711,0.58792723]
[1772485170325,10.68910275,87.75,87.711,0.58792723]
[1772485170943,10.68910275,87.77,87.731,0.58792723]
[1772485171347,10.68910275,87.77,87.733,0.58792723]
[1772485172143,10.68910275,87.79,87.751,0.58792723]
[1772485172653,10.68910275,87.78,87.751,0.58792723]
[1772485173041,10.68910275,87.78,87.732,39.8942233]
[1772485173042,0.48699242,87.779,87.732,39.8942233]
[1772485173453,11.39237622,87.778,87.732,39.8942233]
[1772485173850,0.48699242,87.799,87.75,10.68910275]
[1772485174061,11.38978108,87.798,87.75,10.68910275]
[1772485174443,11.17609517,87.79,87.75,10.68910275]
[1772485174646,11.38978108,87.798,87.76,10.68910275]
[1772485174833,0.48699242,87.768,87.685,57.02229571]
[1772485175034,10.68910275,87.75,87.711,0.48258363]
[1772485175237,0.48699242,87.73,87.687,3.69383402]
[1772485175462,3.69383402,87.777,87.649,11.40914328]
[1772485175463,11.88963099,87.699,87.649,11.40914328]
[1772485175640,10.68910275,87.68,87.65,0.48258363]
[1772485176049,0.48699242,87.71,87.657,0.28432314]
[1772485176257,10.68910275,87.7,87.651,0.48258363]
[1772485176443,10.68910275,87.7,87.661,0.48258363]
[1772485177055,10.68910275,87.69,87.661,0.48258363]
[1772485177257,10.68910275,87.72,87.649,11.40914328]
[1772485177258,10.68910275,87.67,87.649,11.40914328]
[1772485177580,10.68910275,87.68,87.651,11.89146658]
[1772485177754,10.68910275,87.68,87.652,0.48258363]
[1772485177755,11.40523956,87.679,87.652,0.48258363]
[1772485178136,10.68910275,87.68,87.652,0.48258363]
[1772485178337,22.09433074,87.68,87.652,0.48258363]
[1772485178552,10.68910275,87.69,87.652,0.48258363]
[1772485179260,10.68910275,87.74,87.689,0.48258363]
[1772485179443,0.48699242,87.729,87.678,0.48258363]
[1772485179647,11.39935871,87.725,87.682,0.48258363]
[1772485179844,28.49067785,87.748,87.691,0.48258363]
[1772485179845,11.39772419,87.737,87.691,0.48258363]
[1772485180045,11.39772419,87.737,87.684,3.69383402]
[1772485180046,10.68910275,87.74,87.701,0.48258363]
[1772485180244,11.39698986,87.743,87.701,0.48258363]
[1772485180561,10.68910275,87.73,87.701,0.48258363]
[1772485181261,10.68910275,87.71,87.674,0.48258363]
[1772485181450,10.68910275,87.71,87.675,11.4057599]
[1772485182041,45.58726675,87.744,87.675,11.4057599]
[1772485182042,10.68910275,87.73,87.691,0.48258363]
[1772485182247,10.68910275,87.73,87.671,28.51570074]
[1772485182248,0.48699242,87.699,87.65,0.48258363]
[1772485182562,0.48699242,87.719,87.652,0.48258363]
[1772485182740,10.68910275,87.7,87.652,0.48258363]
[1772485183361,10.68910275,87.71,87.671,0.48258363]
[1772485183858,0.48699242,87.751,87.676,0.28432314]
[1772485184060,10.68910275,87.73,87.691,0.48258363]
[1772485184263,0.48699242,87.74,87.691,0.48258363]
[1772485184465,10.68910275,87.71,87.691,0.48258363]
[1772485184963,0.48699242,87.729,87.691,0.48258363]
[1772485185167,10.68910275,87.71,87.678,0.48258363]
[1772485186161,10.68910275,87.71,87.691,0.48258363]
[1772485186363,10.68910275,87.73,87.691,0.48258363]
[1772485186666,10.68910275,87.71,87.679,11.88782319]
[1772485186861,10.68910275,87.71,87.668,28.51649769]
[1772485186862,10.68910275,87.69,87.668,0.48258363]
[1772485187049,0.48699242,87.715,87.669,0.48258363]
[1772485187050,10.68910275,87.71,87.669,0.48258363]
[1772485187249,4.82477569,87.746,87.663,3.69383402]
[1772485187250,0.48699242,87.704,87.663,3.69383402]
[1772485187449,10.68910275,87.69,87.664,11.40706769]
[1772485188058,10.68910275,87.69,87.657,0.61818614]
[1772485188461,10.68910275,87.67,87.651,11.40879042]
[1772485188765,10.68910275,87.69,87.652,0.61818614]
[1772485189064,0.58347168,87.715,87.652,0.61818614]
[1772485189267,10.68910275,87.67,87.644,11.40967462]
[1772485189560,10.68910275,87.66,87.64,0.2]
[1772485189764,10.68910275,87.66,87.643,11.40984586]
[1772485189949,10.68910275,87.66,87.649,11.40914328]
[1772485190150,10.68910275,87.7,87.652,0.61818614]
[1772485190355,0.58347168,87.71,87.652,0.61818614]
[1772485190547,10.68910275,87.68,87.651,11.40888295]
[1772485190755,10.68910275,87.67,87.649,11.40914328]
[1772485190954,10.68910275,87.67,87.648,12.39501681]
[1772485191155,10.68910275,87.66,87.648,0.98574981]
[1772485191358,10.68910275,87.67,87.648,0.98574981]
[1772485192275,10.68910275,87.66,87.648,0.98574981]
[1772485193353,10.68910275,87.66,87.64,0.2]
[1772485193553,10.68910275,87.65,87.615,3.69383402]
[1772485193850,10.68910275,87.65,87.615,0.61818614]
[1772485194055,0.58347168,87.675,87.631,0.61818614]
[1772485194253,0.58347168,87.675,87.616,0.28432314]
[1772485194254,10.68910275,87.66,87.627,11.41188201]
[1772485194458,10.68910275,87.66,87.627,40.56008743]
[1772485194666,10.68910275,87.67,87.628,0.61818614]
[1772485194873,28.50992643,87.689,87.616,3.69383402]
[1772485194874,0.58347168,87.639,87.616,3.69383402]
[1772485195049,0.28432314,87.673,87.617,11.4133102]
[1772485195050,0.58347168,87.659,87.617,11.4133102]
[1772485195255,4.82477569,87.686,87.577,0.61818614]
[1772485195256,4.82477569,87.629,87.577,0.61818614]
[1772485195469,10.68910275,87.6,87.559,5.95908139]
[1772485195672,10.68910275,87.6,87.54,10.68910275]
[1772485195673,10.68910275,87.61,87.571,0.61818614]
[1772485196177,10.68910275,87.61,87.583,0.61818614]
[1772485196474,10.68910275,87.61,87.568,0.61818614]
[1772485196674,10.68910275,87.61,87.571,0.61818614]
[1772485197054,10.68910275,87.62,87.581,0.61818614]
[1772485197261,11.41174725,87.629,87.581,0.61818614]
[1772485197464,45.61681197,87.687,87.567,39.96939485]
[1772485197465,0.28432314,87.652,87.591,0.61818614]
[1772485197669,10.68910275,87.64,87.601,0.61818614]
[1772485198062,10.68910275,87.63,87.601,0.61818614]
[1772485198379,11.41044512,87.639,87.603,0.61818614]
[1772485198559,10.68910275,87.64,87.603,0.61818614]
[1772485198754,10.68910275,87.66,87.611,0.61818614]
[1772485198958,11.40912805,87.65,87.582,0.61818614]
[1772485199187,10.68910275,87.64,87.601,0.61818614]
[1772485199683,11.40912805,87.65,87.621,0.61818614]
[1772485199859,22.0982308,87.65,87.621,0.61818614]
[1772485200174,0.28432314,87.639,87.591,0.61818614]
[1772485200371,1.14173498,87.646,87.601,0.61818614]
[1772485200682,18.5644815,87.653,87.63,10.68910275]
[1772485200978,10.68910275,87.66,87.62,10.68910275]
[1772485201154,45.60606004,87.708,87.631,0.61818614]
[1772485201155,10.68910275,87.67,87.631,0.61818614]
[1772485201358,0.28432314,87.669,87.631,0.61818614]
[1772485201574,0.28432314,87.669,87.62,10.68910275]
[1772485201575,10.68910275,87.66,87.62,10.68910275]
[1772485201874,10.68910275,87.64,87.593,0.61818614]
[1772485202081,10.68910275,87.62,87.582,0.1545]
[1772485202254,11.41304968,87.619,87.582,0.77268614]
[1772485202688,10.68910275,87.61,87.582,0.77268614]
[1772485202973,11.41304968,87.619,87.582,0.77268614]
[1772485203467,39.94567388,87.619,87.582,0.77268614]
[1772485203771,10.68910275,87.61,87.582,0.1545]
[1772485204182,11.41578574,87.598,87.582,0.1545]
[1772485204357,11.41578574,87.598,87.57,0.61818614]
[1772485204565,11.41481894,87.606,87.572,0.61818614]
[1772485204760,10.68910275,87.62,87.581,0.61818614]
[1772485204966,10.68910275,87.61,87.567,0.61818614]
[1772485205286,0.28432314,87.579,87.56,0.1]
[1772485205580,0.28432314,87.579,87.532,0.61818614]
[1772485205581,10.68910275,87.56,87.532,0.61818614]
[1772485205787,0.28432314,87.539,87.509,0.61818614]
[1772485205959,0.28432314,87.539,87.49,10.88910275]
[1772485205960,0.28432314,87.539,87.501,11.42844081]
[1772485206159,0.28432314,87.539,87.5,10.78910275]
[1772485206160,11.42491545,87.528,87.5,0.1]
[1772485206467,0.28432314,87.519,87.49,0.2]
[1772485206670,0.28432314,87.509,87.47,11.63239996]
[1772485207381,10.68910275,87.52,87.48,10.68910275]
[1772485207562,0.28432314,87.519,87.48,10.68910275]
[1772485207758,0.28432314,87.519,87.471,11.43236043]
[1772485207759,10.68910275,87.51,87.471,11.43236043]
[1772485207960,0.28432314,87.509,87.471,11.43236043]
[1772485208157,0.48807032,87.507,87.471,11.43236043]
[1772485208376,0.28432314,87.499,87.47,0.2]
[1772485208586,0.48593566,87.498,87.47,0.2]
[1772485208771,0.28432314,87.489,87.47,0.2]
[1772485208967,0.48593566,87.488,87.46,0.2]
[1772485209280,0.48593566,87.488,87.44,11.30728889]
[1772485209281,0.28432314,87.479,87.44,11.30728889]
[1772485209466,0.28432314,87.469,87.44,0.61818614]
[1772485209873,0.28432314,87.469,87.43,10.68910275]
[1772485210080,0.28432314,87.479,87.441,0.61818614]
[1772485210476,0.28432314,87.469,87.43,10.68910275]
[1772485210677,0.28432314,87.469,87.43,11.4377216]
[1772485210884,0.28432314,87.469,87.431,0.61818614]
[1772485211268,0.28432314,87.469,70.123,0.3]
[1772485211269,10.68910275,87.44,87.401,0.61818614]
[1772485211472,10.68910275,87.43,87.352,1.14479347]
[1772485211688,10.68910275,87.43,87.315,45.81107357]
[1772485211689,0.28432314,87.389,87.363,0.61818614]
[1772485211885,10.68910275,87.39,87.363,0.61818614]
[1772485212064,10.68910275,87.39,87.34,10.68910275]
[1772485212065,10.68910275,87.39,87.35,0.61818614]
[1772485212410,0.27967769,87.407,87.35,0.61818614]
[1772485212411,11.44439739,87.379,87.35,0.61818614]
[1772485212697,10.68910275,87.41,87.371,0.61818614]
[1772485212859,0.28432314,87.409,87.371,0.61818614]
[1772485213065,0.27763944,87.453,87.391,0.61818614]
[1772485213265,0.27763944,87.453,87.401,0.61818614]
[1772485213484,45.71454305,87.5,87.43,10.68910275]
[1772485213485,10.96674219,87.47,87.43,10.68910275]
[1772485213685,10.96674219,87.47,87.421,0.61818614]
[1772485213867,10.96674219,87.47,87.43,10.68910275]
[1772485214189,0.28432314,87.449,87.408,0.61818614]
[1772485214378,0.28432314,87.449,87.36,10.68910275]
[1772485214379,0.28432314,87.427,87.381,0.61818614]
[1772485214702,0.28432314,87.419,87.381,0.61818614]
[1772485214991,0.28432314,87.419,87.353,45.79075753]
[1772485214992,0.28432314,87.399,87.366,0.61818614]
[1772485215161,0.28432314,87.399,87.367,11.4459693]
[1772485215365,0.28432314,87.399,87.366,0.61818614]
[1772485215366,0.28432314,87.399,87.358,11.93264147]
[1772485215565,0.28432314,87.399,87.359,11.44701747]
[1772485215967,0.28432314,87.399,87.361,0.61818614]
[1772485216173,10.77670069,87.39,87.358,11.31445533]
[1772485216373,0.28432314,87.399,87.358,11.31445533]
[1772485216670,0.28432314,87.401,87.361,0.61818614]
[1772485216879,0.28432314,87.399,87.361,0.61818614]
[1772485217077,0.28432314,87.424,87.381,0.57412858]
[1772485217270,0.28432314,87.419,87.381,0.57412858]
[1772485217466,10.77670069,87.42,87.381,0.57412858]
[1772485217867,0.28432314,87.419,87.381,0.57412858]
[1772485218585,0.28432314,87.417,87.373,11.44514575]
[1772485218784,0.28432314,87.419,87.374,0.57599306]
[1772485219086,0.28432314,87.409,87.374,0.57599306]
[1772485219393,0.28432314,87.409,87.375,0.57599306]
[1772485219777,10.77670069,87.42,87.381,0.57599306]
[1772485220083,0.28432314,87.419,87.381,0.57599306]
[1772485220392,11.72348396,87.419,87.381,0.57599306]
[1772485220589,11.72348396,87.419,87.382,11.44400448]
[1772485220789,11.72348396,87.419,87.381,0.57599306]
[1772485221178,11.72348396,87.419,87.382,12.01999754]
[1772485221382,0.28432314,87.419,87.383,0.57599306]
[1772485221699,11.43929167,87.418,87.383,0.57599306]
[1772485222695,10.45156975,87.418,87.383,0.57599306]
[1772485222896,4.82477569,87.439,87.358,11.31445533]
[1772485222897,16.80863981,87.43,87.391,0.57599306]
[1772485223100,11.72217556,87.429,87.391,0.57599306]
[1772485223394,11.72217556,87.429,87.328,45.80430916]
[1772485223395,16.80863981,87.4,87.368,0.57599306]
[1772485223774,0.28432314,87.409,87.369,11.44570728]
[1772485223991,0.28432314,87.409,87.37,0.57599306]
[1772485224300,0.28432314,87.399,87.356,0.57599306]
[1772485224507,11.44321874,87.388,87.35,11.44815177]
[1772485224677,0.28432314,87.389,87.359,0.57599306]
[1772485224997,11.72749005,87.389,87.359,0.57599306]
[1772485225171,0.25144381,87.386,87.336,0.57599306]
[1772485225487,3.69383402,87.403,87.371,0.57599306]
[1772485225686,45.7399088,87.451,87.346,0.57599306]
[1772485225687,0.24972985,87.407,87.346,0.57599306]
[1772485225893,16.80863981,87.4,87.351,0.57599306]
[1772485226192,11.69055754,87.407,87.361,0.57599306]
[1772485226495,0.28432314,87.409,87.361,0.57599306]
[1772485226875,11.44046951,87.409,87.363,0.57599306]
[1772485227084,16.80863981,87.4,87.363,0.57599306]
[1772485227292,16.80863981,87.4,87.362,11.44662439]
[1772485227293,11.43971379,87.415,87.371,0.57599306]
[1772485227483,16.80863981,87.42,87.381,0.57599306]
[1772485227884,16.80863981,87.43,87.381,0.57599306]
[1772485228284,16.80863981,87.44,87.401,0.57599306]
[1772485228490,16.80863981,87.44,87.4,16.80863981]
[1772485228491,16.80863981,87.45,87.411,0.57599306]
[1772485228996,16.80863981,87.46,87.413,0.57599306]
[1772485229499,16.80863981,87.47,87.431,0.57599306]
[1772485230481,16.80863981,87.46,87.431,0.57599306]
[1772485230784,16.80863981,87.46,87.418,0.57599306]
[1772485230978,16.80863981,87.46,87.42,0.57599306]
[1772485230979,40.01875164,87.459,87.42,0.57599306]
[1772485231692,11.43392904,87.459,87.42,0.57599306]
[1772485231990,11.43392904,87.459,87.42,17.38463287]
[1772485232193,0.23985167,87.455,87.404,0.57599306]
[1772485232491,11.43392904,87.459,87.393,0.57599306]
[1772485232492,0.23985167,87.439,87.393,0.57599306]
[1772485232694,0.28432314,87.438,87.393,0.57599306]
[1772485232888,0.28432314,87.438,87.42,0.17702921]
[1772485233085,0.28432314,87.436,87.42,0.17702921]
[1772485233286,40.01463391,87.468,87.42,0.17702921]
[1772485233487,5.10909883,87.46,87.42,0.17702921]
[1772485234195,0.14216157,87.467,87.411,0.57599306]
[1772485234380,0.28432314,87.467,87.411,0.57599306]
[1772485234692,0.28432314,87.467,87.405,0.57599306]
[1772485235096,0.28432314,87.465,87.407,0.57599306]
[1772485235791,3.69383402,87.463,87.407,0.57599306]
[1772485235992,16.80863981,87.43,87.407,0.57599306]
[1772485236184,16.80863981,87.44,87.407,0.57599306]
[1772485236902,16.80863981,87.43,87.395,0.57599306]
[1772485237283,16.80863981,87.43,87.357,46.93382983]
[1772485237284,16.80863981,87.44,87.397,0.57599306]
[1772485237692,11.43667512,87.438,87.397,0.57599306]
[1772485237894,11.43667512,87.438,87.401,0.57599306]
[1772485238282,11.43617217,87.442,87.401,0.57599306]
[1772485238678,11.43394218,87.459,87.421,0.57599306]
[1772485239383,0.28432314,87.469,87.423,0.57599306]
[1772485239697,16.80863981,87.46,87.423,0.57599306]
[1772485241210,0.28432314,87.469,87.423,0.57599306]
[1772485241381,11.43392904,87.459,87.424,11.43850658]
[1772485241582,11.43392904,87.459,87.425,0.57599306]
[1772485241786,4.82477569,87.488,87.424,11.43850658]
[1772485241787,28.54695974,87.575,87.512,0.57599306]
[1772485242002,28.54695974,87.575,87.486,5.95294814]
[1772485242003,16.80863981,87.52,87.486,5.95294814]
[1772485242184,0.54333908,87.499,87.486,4.83033388]
[1772485242378,16.80863981,87.5,87.44,16.80863981]
[1772485242582,10.76307705,87.48,87.424,40.03477305]
[1772485242882,10.76307705,87.54,87.424,40.03477305]
[1772485242883,10.76307705,87.49,87.43,10.76307705]
[1772485243905,10.76307705,87.49,87.432,0.57599306]
[1772485244291,8.51860971,87.52,87.441,0.57599306]
[1772485244605,10.76307705,87.49,87.441,0.57599306]
[1772485245130,10.76307705,87.48,87.441,0.57599306]
[1772485245414,10.76307705,87.46,87.431,40.03156774]
[1772485246393,10.76307705,87.44,87.417,0.57599306]
[1772485246594,10.76307705,87.44,87.361,45.78690688]
[1772485246595,10.76307705,87.43,87.392,0.57599306]
[1772485246808,10.76307705,87.44,87.392,0.57599306]
[1772485247804,10.76307705,87.44,87.394,0.55612615]
[1772485247989,10.76307705,87.43,87.394,0.55612615]
[1772485249889,10.76307705,87.43,87.395,40.04805766]
[1772485250121,10.76307705,87.42,87.395,11.44230219]
[1772485250684,10.76307705,87.41,87.382,28.60977806]
[1772485250913,10.76307705,87.41,87.36,10.76307705]
[1772485250914,10.76307705,87.4,87.371,0.55612615]
[1772485251118,10.76307705,87.41,87.371,0.55612615]
[1772485251992,10.76307705,87.41,87.373,0.55612615]
[1772485252206,10.76307705,87.42,87.373,0.55612615]
[1772485252717,10.76307705,87.43,87.381,0.55612615]
[1772485252892,10.76307705,87.43,87.38,10.76307705]
[1772485252893,10.76307705,87.45,87.411,0.55612615]
[1772485253094,10.76307705,87.46,87.411,0.55612615]
[1772485254200,10.76307705,87.46,87.413,0.55612615]
[1772485255409,11.43392904,87.459,87.413,0.55612615]
[1772485255604,10.76307705,87.46,87.413,0.55612615]
[1772485256022,28.57393449,87.493,87.421,0.55612615]
[1772485256196,45.69055936,87.546,87.422,40.03568895]
[1772485256197,10.76307705,87.47,87.422,40.03568895]
[1772485256518,10.76307705,87.47,87.423,0.55612615]
[1772485257213,10.76307705,87.48,87.431,0.55612615]
[1772485257996,10.76307705,87.47,87.431,0.55612615]
[1772485258426,10.76307705,87.46,87.433,0.55612615]
[1772485259821,10.76307705,87.45,87.422,11.43872888]
[1772485260515,3.69383402,87.484,87.423,0.55612615]
[1772485260715,40.00594374,87.487,87.423,0.55612615]
[1772485260716,10.76307705,87.47,87.423,0.55612615]
[1772485261029,10.76307705,87.48,87.431,0.55612615]
[1772485261204,10.76307705,87.49,87.441,0.55612615]
[1772485262399,10.76307705,87.49,87.413,45.75963487]
[1772485262400,10.76307705,87.45,87.417,11.43942253]
[1772485262605,10.76307705,87.45,87.417,11.99554868]
[1772485262821,10.76307705,87.44,87.406,0.55612615]
[1772485263712,14.45691107,87.48,87.383,0.55612615]
[1772485263713,10.76307705,87.43,87.383,0.55612615]
[1772485263906,10.76307705,87.42,87.383,11.99999967]
[1772485264120,10.76307705,87.41,87.383,11.99999967]
[1772485264306,11.44046951,87.409,87.383,0.55612615]
[1772485264505,11.44046951,87.409,87.351,0.55612615]
[1772485264506,10.76307705,87.39,87.351,0.55612615]
[1772485264722,10.76307705,87.37,87.339,0.55612615]
[1772485265134,10.76307705,87.38,87.339,0.55612615]
[1772485265626,10.76307705,87.39,87.351,0.55612615]
[1772485266427,40.0416433,87.409,87.351,0.55612615]
[1772485266428,10.76307705,87.38,87.351,0.55612615]
[1772485266824,10.76307705,87.39,87.352,11.44793479]
[1772485267037,10.76307705,87.4,87.361,0.55612615]
[1772485267331,10.76307705,87.4,87.353,0.55612615]
[1772485267926,10.76307705,87.39,87.353,0.55612615]